bitfinex/quotes_BTCUSD_20230405
["timestamp","ask_amount","ask_price","bid_price","bid_amount"]
[1680658070112,0.72312856,28614.0,28613.0,0.02232543]
[1680658071010,0.1677,28623.0,28613.0,0.02232543]
[1680658071241,0.12537494,28632.0,28625.0,0.19632618]
[1680658071471,0.00021,28628.0,28627.0,0.417465]
[1680658071720,0.023341,28637.0,28631.0,1.1]
[1680658071934,0.023551,28637.0,28632.0,0.052262]
[1680658072153,0.023341,28637.0,28633.0,0.033032]
[1680658072373,0.023341,28637.0,28634.0,0.017461]
[1680658072604,0.023341,28637.0,28636.0,0.033131]
[1680658073483,0.023341,28637.0,28636.0,0.077591]
[1680658073484,0.024341,28637.0,28636.0,0.077591]
[1680658077079,0.023341,28637.0,28636.0,0.050591]
[1680658077307,0.024341,28637.0,28636.0,0.79614774]
[1680658077534,0.03321,28643.0,28642.0,0.19632618]
[1680658077781,0.03321,28643.0,28642.0,0.050998]
[1680658078215,0.03315,28643.0,28642.0,0.050998]
[1680658078443,0.03315,28643.0,28642.0,0.58025856]
[1680658078659,0.03315,28643.0,28642.0,0.68025856]
[1680658078878,0.03315,28643.0,28642.0,1.21547856]
[1680658079332,0.03415,28643.0,28642.0,1.24347856]
[1680658079568,0.03315,28643.0,28642.0,1.21565856]
[1680658079792,0.03415,28643.0,28642.0,0.58395256]
[1680658080255,0.03415,28643.0,28642.0,0.229242]
[1680658080533,0.03415,28643.0,28642.0,0.329242]
[1680658080755,0.03415,28643.0,28642.0,0.329182]
[1680658080984,0.03415,28643.0,28642.0,0.346638]
[1680658081205,0.03415,28643.0,28642.0,0.329182]
[1680658081430,0.03315,28643.0,28642.0,0.301182]
[1680658081668,0.03415,28643.0,28642.0,0.329062]
[1680658081898,0.03415,28643.0,28642.0,0.70134856]
[1680658082122,0.03415,28643.0,28642.0,0.70140856]
[1680658082346,0.03415,28643.0,28642.0,1.06904856]
[1680658082807,0.03315,28643.0,28642.0,1.04104856]
[1680658083034,0.03415,28643.0,28642.0,1.06892856]
[1680658083490,0.03415,28643.0,28642.0,1.06904856]
[1680658083719,0.03415,28643.0,28642.0,1.06910856]
[1680658083944,0.03415,28643.0,28642.0,1.06904856]
[1680658084167,0.03315,28643.0,28642.0,1.04104856]
[1680658084403,0.01415,28643.0,28642.0,1.06892856]
[1680658084596,0.01315,28643.0,28642.0,1.04092856]
[1680658084760,0.01415,28643.0,28642.0,1.06892856]
[1680658084965,0.01415,28643.0,28642.0,0.96892856]
[1680658085166,0.01415,28643.0,28642.0,0.58377256]
[1680658085367,0.01415,28643.0,28642.0,0.60122856]
[1680658085598,0.01084812,28643.0,28642.0,0.73424736]
[1680658086384,0.01084812,28643.0,28642.0,0.70122856]
[1680658086820,0.00984812,28643.0,28642.0,0.201062]
[1680658087038,0.00984812,28643.0,28642.0,0.248562]
[1680658087039,0.01084812,28643.0,28642.0,0.248562]
[1680658087442,0.01084812,28643.0,28642.0,0.350258]
[1680658087652,0.00984812,28643.0,28642.0,0.55577256]
[1680658087867,0.01084812,28643.0,28642.0,0.60022856]
[1680658088107,0.01084812,28643.0,28642.0,0.68277256]
[1680658088318,0.00984812,28643.0,28642.0,0.65577256]
[1680658088547,0.01084812,28643.0,28642.0,0.68277256]
[1680658088755,0.01084812,28643.0,28642.0,0.65577256]
[1680658088756,0.00984812,28643.0,28642.0,0.65577256]
[1680658089179,0.00984812,28643.0,28642.0,0.201062]
[1680658089643,0.01084812,28643.0,28642.0,0.228062]
[1680658089852,0.00984812,28643.0,28642.0,0.201062]
[1680658090057,0.00984812,28643.0,28642.0,0.228062]
[1680658090058,0.01084812,28643.0,28642.0,0.228062]
[1680658090494,0.00984812,28643.0,28642.0,0.201062]
[1680658090698,0.01084812,28643.0,28642.0,0.228062]
[1680658090910,0.01084812,28643.0,28642.0,0.350258]
[1680658091138,0.01084812,28643.0,28642.0,0.280431]
[1680658091345,0.01084812,28643.0,28642.0,0.245518]
[1680658091564,0.01084812,28643.0,28642.0,0.228062]
[1680658092613,0.00984812,28643.0,28642.0,0.201062]
[1680658092833,0.01084812,28643.0,28642.0,0.228062]
[1680658093039,0.01433912,28643.0,28642.0,0.060542]
[1680658093290,0.01433912,28643.0,28642.0,0.027]
[1680658093509,0.36904968,28643.0,28642.0,0.027]
[1680658093733,0.36925968,28643.0,28642.0,0.027]
[1680658094240,0.40684868,28643.0,28636.0,0.00012]
[1680658094449,0.49660737,28642.0,28634.0,0.16758]
[1680658094661,0.02444,28640.0,28633.0,0.16776]
[1680658094868,0.49660737,28639.0,28631.0,0.00018]
[1680658095080,0.010476,28637.0,28629.0,0.16758]
[1680658095293,0.49660737,28636.0,28628.0,0.1677]
[1680658095512,0.010476,28634.0,28632.0,0.03335947]
[1680658095722,0.36518656,28634.0,28632.0,0.03335947]
[1680658095935,0.86430737,28633.0,28632.0,0.03335947]
[1680658096154,1.23530837,28633.0,28632.0,0.03335947]
[1680658096363,1.09320156,28633.0,28632.0,0.05635947]
[1680658096576,1.09320156,28633.0,28632.0,0.023]
[1680658096780,1.09320156,28633.0,28624.0,0.0212]
[1680658097007,0.3677,28631.0,28624.0,0.0212]
[1680658097205,0.010477,28629.0,28624.0,0.0212]
[1680658097416,0.49660737,28628.0,28625.0,0.02548764]
[1680658097610,0.003493,28627.0,28625.0,0.02548764]
[1680658097843,0.35820356,28627.0,28626.0,0.033121]
[1680658098321,0.35820356,28627.0,28625.0,0.02548764]
[1680658098532,0.35920356,28627.0,28626.0,0.037325]
[1680658098746,0.35820356,28627.0,28624.0,0.02138]
[1680658099011,0.35920356,28627.0,28626.0,0.042531]
[1680658099222,0.35820356,28627.0,28624.0,0.02138]
[1680658099463,0.35820356,28627.0,28626.0,0.032264]
[1680658099729,0.35920356,28627.0,28626.0,0.032264]
[1680658100386,0.35571056,28627.0,28626.0,0.032264]
[1680658100610,0.35571056,28627.0,28626.0,0.02542077]
[1680658100835,0.37916156,28627.0,28626.0,0.02542077]
[1680658101061,0.38016156,28627.0,28626.0,0.03342077]
[1680658101493,0.011479,28627.0,28626.0,0.03342077]
[1680658101714,0.001,28627.0,28626.0,0.03342077]
[1680658102382,0.001,28627.0,28626.0,0.08664477]
[1680658102608,0.001,28627.0,28626.0,0.25422477]
[1680658103040,0.001,28627.0,28626.0,0.33675877]
[1680658103263,0.011479,28627.0,28626.0,0.33675877]
[1680658103551,0.011479,28627.0,28626.0,0.22875877]
[1680658103552,0.003493,28627.0,28626.0,0.22875877]
[1680658103780,0.001,28627.0,28626.0,0.25675877]
[1680658104260,0.001,28627.0,28626.0,0.08917877]
[1680658104487,0.00021,28633.0,28626.0,0.09722868]
[1680658104714,0.35841256,28633.0,28630.0,0.02332]
[1680658105158,0.025058,28631.0,28630.0,0.02332]
[1680658106329,0.00021,28632.0,28630.0,0.02332]
[1680658106999,0.00021,28632.0,28630.0,0.03032]
[1680658107453,0.024612,28631.0,28630.0,0.03032]
[1680658107696,0.00021,28632.0,28630.0,0.02332]
[1680658107908,0.00021,28632.0,28630.0,0.03032]
[1680658108190,0.00021,28632.0,28630.0,0.02332]
[1680658108395,0.00021,28632.0,28630.0,0.03032]
[1680658108631,0.35492056,28632.0,28630.0,0.02332]
[1680658108769,0.03534,28631.0,28630.0,0.02332]
[1680658108940,0.36539756,28631.0,28630.0,0.02332]
[1680658109143,0.39036856,28631.0,28630.0,0.02332]
[1680658109444,0.37989156,28631.0,28630.0,0.02332]
[1680658109646,0.37989156,28631.0,28630.0,0.03032]
[1680658109969,0.35492056,28631.0,28630.0,0.03032]
[1680658110820,0.38020856,28631.0,28630.0,0.03032]
[1680658111510,0.00021,28631.0,28630.0,0.03032]
[1680658111729,0.30021,28633.0,28630.0,0.03032]
[1680658111940,0.65492056,28633.0,28630.0,0.03032]
[1680658112152,0.65471056,28633.0,28630.0,0.02332]
[1680658112630,0.3,28633.0,28631.0,0.03285825]
[1680658112862,0.3,28633.0,28632.0,0.033086]
[1680658112863,0.00021,28633.0,28632.0,0.033086]
[1680658113078,0.003701,28638.0,28632.0,0.033086]
[1680658113298,0.003491,28640.0,28632.0,0.133086]
[1680658113505,0.007193,28641.0,28633.0,0.033253]
[1680658113506,0.35820156,28641.0,28633.0,0.033253]
[1680658113716,0.35841156,28641.0,28633.0,0.033253]
[1680658114133,0.50030837,28641.0,28633.0,0.033253]
[1680658114346,0.50030837,28641.0,28633.0,0.050715]
[1680658114572,0.49681737,28641.0,28634.0,0.032646]
[1680658114783,0.49681737,28641.0,28633.0,0.034423]
[1680658114784,0.50030837,28641.0,28633.0,0.034423]
[1680658115023,0.14189681,28640.0,28633.0,0.034423]
[1680658115231,0.14189681,28640.0,28633.0,0.079885]
[1680658115441,0.14189681,28640.0,28634.0,0.032303]
[1680658115663,0.00021,28641.0,28634.0,0.049764]
[1680658115876,0.31005812,28643.0,28635.0,0.201793]
[1680658116088,0.31005812,28643.0,28637.0,0.017459]
[1680658116089,0.01005812,28643.0,28637.0,0.017459]
[1680658116328,0.00984812,28643.0,28638.0,0.033575]
[1680658116762,0.00984812,28643.0,28638.0,0.051033]
[1680658116972,0.00984812,28643.0,28639.0,0.033804]
[1680658117188,0.00984812,28643.0,28639.0,0.051262]
[1680658117395,0.00984812,28643.0,28640.0,0.032998]
[1680658117616,0.00984812,28643.0,28640.0,0.050455]
[1680658117841,0.00984812,28643.0,28637.0,0.335509]
[1680658117842,0.00984812,28643.0,28642.0,0.034324]
[1680658118063,0.00984812,28643.0,28639.0,0.051109]
[1680658118275,0.00984812,28643.0,28640.0,0.031945]
[1680658118700,0.00984812,28643.0,28640.0,0.057945]
[1680658118978,0.00984812,28643.0,28642.0,0.033573]
[1680658120728,0.00984812,28643.0,28639.0,0.032964]
[1680658120968,0.00984812,28643.0,28642.0,0.013]
[1680658121171,0.00984812,28643.0,28637.0,0.26752]
[1680658121372,0.00984812,28643.0,28638.0,0.032727]
[1680658121373,0.14189681,28642.0,28638.0,0.032727]
[1680658121580,0.010473,28642.0,28638.0,0.032727]
[1680658121813,0.14189681,28641.0,28638.0,0.032727]
[1680658122046,0.14189681,28641.0,28636.0,0.1677]
[1680658122047,0.14189681,28641.0,28636.0,0.16752]
[1680658122276,0.14189681,28641.0,28637.0,0.034396]
[1680658122494,0.14189681,28641.0,28635.0,0.00018]
[1680658122495,0.003491,28642.0,28638.0,0.028]
[1680658122735,0.003491,28642.0,28635.0,0.00012]
[1680658122966,0.14189681,28641.0,28636.0,0.028]
[1680658123185,0.14189681,28641.0,28637.0,0.034759]
[1680658123400,0.01354912,28643.0,28637.0,0.202279]
[1680658123619,0.36804968,28643.0,28637.0,0.16752]
[1680658123838,0.36825968,28643.0,28637.0,0.16752]
[1680658124019,0.36825968,28643.0,28638.0,0.028]
[1680658124227,0.36825968,28643.0,28636.0,0.00018]
[1680658124432,0.50994649,28643.0,28637.0,0.028]
[1680658124603,0.36476868,28643.0,28637.0,0.028]
[1680658124809,0.50666549,28643.0,28637.0,0.16752]
[1680658125032,0.01005812,28643.0,28638.0,0.19552]
[1680658125235,0.01333912,28643.0,28639.0,0.034259]
[1680658125483,0.00984812,28643.0,28638.0,0.036051]
[1680658125683,0.024438,28642.0,28637.0,0.19552]
[1680658125888,0.14189681,28642.0,28638.0,0.031745]
[1680658126238,0.14189681,28642.0,28636.0,0.16752]
[1680658126239,0.003491,28641.0,28637.0,0.033327]
[1680658126460,0.00984812,28643.0,28637.0,0.033327]
[1680658126694,0.010474,28640.0,28636.0,0.033034]
[1680658126915,0.14538781,28640.0,28639.0,0.033346]
[1680658127138,0.01005812,28643.0,28637.0,0.061479]
[1680658127358,0.00984812,28643.0,28637.0,0.045459]
[1680658127581,0.003491,28642.0,28637.0,0.033659]
[1680658127996,0.01333912,28643.0,28637.0,0.033659]
[1680658128144,0.15174493,28643.0,28638.0,0.035846]
[1680658128346,0.00984812,28643.0,28638.0,0.035846]
[1680658128567,0.00984812,28643.0,28639.0,0.052375]
[1680658128805,0.00984812,28643.0,28640.0,0.03366]
[1680658129003,0.00984812,28643.0,28641.0,0.017457]
[1680658129203,0.00984812,28643.0,28640.0,0.117457]
[1680658129403,0.00984812,28643.0,28642.0,0.033375]
[1680658129619,0.00984812,28643.0,28640.0,0.03516]
[1680658130227,0.00984812,28643.0,28640.0,0.028]
[1680658130370,0.00984812,28643.0,28642.0,0.034393]
[1680658132744,0.00984812,28643.0,28642.0,0.05429584]
[1680658133593,0.00984812,28643.0,28642.0,0.03429584]
[1680658133791,0.00984812,28643.0,28642.0,0.06229584]
[1680658134007,0.00984812,28643.0,28642.0,0.028]
[1680658134662,0.003491,28644.0,28642.0,0.028]
[1680658134881,0.059348,28644.0,28642.0,0.028]
[1680658135101,0.37870956,28643.0,28642.0,0.028]
[1680658135322,0.37870956,28643.0,28637.0,0.00018]
[1680658135323,0.35814156,28643.0,28637.0,0.00018]
[1680658135556,0.14189681,28642.0,28636.0,0.00018]
[1680658135800,0.37915056,28641.0,28635.0,0.00018]
[1680658136029,0.010474,28639.0,28634.0,0.00012]
[1680658136256,0.14189681,28638.0,28634.0,0.00018]
[1680658136475,0.003492,28637.0,28636.0,0.028]
[1680658136694,0.003492,28637.0,28634.0,0.00018]
[1680658136908,0.003492,28637.0,28634.0,0.028]
[1680658137128,0.003492,28637.0,28632.0,0.00018]
[1680658137364,0.14189681,28636.0,28631.0,0.03499]
[1680658137585,0.49660737,28636.0,28631.0,0.00018]
[1680658137809,0.010476,28635.0,28631.0,0.00018]
[1680658138056,0.15237281,28635.0,28630.0,0.034914]
[1680658138232,0.14888081,28635.0,28631.0,0.03381]
[1680658138487,0.010476,28633.0,28632.0,0.03276912]
[1680658138708,0.310476,28633.0,28632.0,0.03276912]
[1680658138948,0.335058,28633.0,28632.0,0.03276912]
[1680658139575,0.335058,28633.0,28632.0,0.03376912]
[1680658139794,0.335058,28633.0,28632.0,0.03276912]
[1680658140002,0.339058,28633.0,28632.0,0.03376912]
[1680658140457,0.339058,28633.0,28632.0,0.001]
[1680658140689,0.40985276,28633.0,28632.0,0.001]
[1680658140919,0.76056332,28633.0,28627.0,0.02332]
[1680658141138,0.35471056,28632.0,28627.0,0.02332]
[1680658141341,0.010477,28631.0,28627.0,0.02332]
[1680658141558,0.35471056,28630.0,28628.0,0.02484427]
[1680658141779,0.003492,28629.0,28628.0,0.02484427]
[1680658142270,0.35820256,28630.0,28628.0,0.02484427]
[1680658142466,0.003492,28631.0,28628.0,0.02484427]
[1680658142682,0.35820256,28631.0,28628.0,0.02484427]
[1680658142899,0.35820256,28631.0,28628.0,0.03884427]
[1680658143573,0.37217256,28631.0,28628.0,0.03884427]
[1680658143791,0.37217256,28631.0,28628.0,0.02484427]
[1680658143792,0.40709956,28631.0,28628.0,0.02484427]
[1680658144008,0.024266,28629.0,28628.0,0.03884427]
[1680658144234,0.38945356,28629.0,28628.0,0.03884427]
[1680658144656,0.68945356,28629.0,28628.0,0.02484427]
[1680658144893,0.68945356,28629.0,28628.0,0.03184427]
[1680658145531,0.68945356,28629.0,28627.0,0.02332]
[1680658145768,0.67908656,28628.0,28627.0,0.02332]
[1680658145983,0.69655156,28628.0,28627.0,0.02332]
[1680658146453,0.69676156,28628.0,28618.0,0.25945306]
[1680658146679,0.003493,28625.0,28618.0,0.25927306]
[1680658146905,0.14189681,28624.0,28620.0,0.033528]
[1680658147115,0.14538981,28624.0,28619.0,0.035533]
[1680658147531,0.14538981,28624.0,28621.0,0.02531244]
[1680658147750,0.003493,28624.0,28621.0,0.02531244]
[1680658148161,0.00021,28627.0,28622.0,0.050944]
[1680658148381,0.00021,28627.0,28623.0,0.034736]
[1680658148598,0.303492,28630.0,28623.0,0.034199]
[1680658148599,0.30021,28629.0,28623.0,0.034199]
[1680658148803,0.00021,28629.0,28623.0,0.034199]
[1680658149011,0.30021,28629.0,28623.0,0.034199]
[1680658149227,0.30021,28629.0,28623.0,0.051667]
[1680658149446,0.30021,28629.0,28624.0,0.032888]
[1680658149662,0.30021,28629.0,28623.0,0.034468]
[1680658149884,0.30021,28629.0,28623.0,0.051936]
[1680658150129,0.30021,28629.0,28624.0,0.035372]
[1680658150386,0.00021,28629.0,28624.0,0.035372]
[1680658150642,0.003492,28631.0,28625.0,0.1]
[1680658151579,0.00912104,28633.0,28626.0,0.049927]
[1680658151863,0.35471056,28632.0,28625.0,0.117466]
[1680658152159,0.35471056,28632.0,28624.0,0.4662]
[1680658152160,0.3,28631.0,28624.0,0.4662]
[1680658152448,0.3,28631.0,28625.0,0.007]
[1680658152449,0.49660737,28630.0,28625.0,0.007]
[1680658152727,0.347954,28629.0,28620.0,0.16782]
[1680658152999,0.49660737,28628.0,28625.0,0.007]
[1680658153274,0.010479,28627.0,28620.0,0.26782]
[1680658153771,0.49660737,28626.0,28625.0,0.007]
[1680658153775,0.49660737,28626.0,28618.0,0.00018]
[1680658154040,0.024454,28624.0,28620.0,0.028]
[1680658154315,0.35471056,28623.0,28616.0,0.16782]
[1680658154612,0.003493,28621.0,28620.0,0.028]
[1680658154906,0.35820356,28621.0,28620.0,0.028]
[1680658155575,0.65841356,28621.0,28616.0,0.00012]
[1680658155577,0.65841356,28621.0,28618.0,0.027]
[1680658155877,0.65841356,28621.0,28613.0,0.44468]
[1680658155878,0.024962,28619.0,28613.0,0.44468]
[1680658156237,0.15237881,28618.0,28613.0,0.44468]
[1680658156435,0.80708937,28618.0,28613.0,0.44468]
[1680658156694,0.80708937,28618.0,28613.0,0.00012]
[1680658156953,0.80708937,28618.0,28613.0,0.021]
[1680658157221,0.80708937,28618.0,28612.0,0.0212]
[1680658158184,0.80708937,28618.0,28613.0,0.014]
[1680658158457,0.80708937,28618.0,28612.0,0.0212]
[1680658158733,0.80708937,28618.0,28612.0,0.0422]
[1680658158995,0.80708937,28618.0,28612.0,0.0212]
[1680658159275,0.80708937,28618.0,28613.0,0.014]
[1680658159539,0.66519256,28618.0,28612.0,0.0212]
[1680658159811,0.80708937,28618.0,28612.0,0.0422]
[1680658160041,0.80708937,28618.0,28612.0,0.0212]
[1680658160297,0.80708937,28618.0,28612.0,0.0422]
[1680658160564,0.80708937,28618.0,28613.0,0.02127659]
[1680658160839,0.80708937,28618.0,28610.0,0.91364159]
[1680658160840,0.66540256,28618.0,28610.0,0.65157265]
[1680658161101,0.14189681,28617.0,28610.0,0.65157265]
[1680658161636,0.003494,28615.0,28612.0,0.012]
[1680658161688,0.003494,28615.0,28610.0,0.81927265]
[1680658161954,0.14539081,28615.0,28610.0,0.81927265]
[1680658162236,0.14560081,28615.0,28610.0,0.66357265]
[1680658162500,0.003704,28615.0,28611.0,0.03331]
[1680658162953,0.002,28615.0,28611.0,0.13331]
[1680658163240,0.002,28615.0,28612.0,0.03299]
[1680658164183,0.003494,28619.0,28612.0,0.20069]
[1680658164185,0.001,28615.0,28613.0,0.1677]
[1680658164420,0.003494,28620.0,28614.0,0.03306]
[1680658164644,0.001,28615.0,28614.0,0.13306]
[1680658165356,0.024461,28615.0,28614.0,0.03306]
[1680658165594,0.026461,28615.0,28614.0,0.012]
[1680658165822,0.051009,28615.0,28614.0,0.012]
[1680658166051,0.037031,28615.0,28614.0,0.012]
[1680658166505,0.39544466,28615.0,28614.0,0.012]
[1680658166762,0.028758,28615.0,28614.0,0.024]
[1680658166992,0.028042,28615.0,28610.0,0.65157265]
[1680658167219,0.16039081,28615.0,28614.0,0.001]
[1680658167440,0.042814,28615.0,28614.0,0.001]
[1680658168350,0.39752456,28615.0,28614.0,0.001]
[1680658168564,0.69773456,28615.0,28614.0,0.001]
[1680658170155,0.65471056,28614.0,28610.0,0.10378565]
[1680658170364,0.65841456,28614.0,28610.0,0.10378565]
[1680658171309,0.65941456,28614.0,28610.0,0.11478565]
[1680658172124,0.30121,28614.0,28610.0,0.11478565]
[1680658172378,0.30121,28614.0,28611.0,0.034905]
[1680658172379,0.001,28614.0,28611.0,0.034905]
[1680658172610,0.001,28614.0,28612.0,0.1]
[1680658172831,0.001,28614.0,28613.0,0.034442]
[1680658173471,0.003494,28619.0,28613.0,0.034442]
[1680658173720,0.001,28614.0,28613.0,0.034442]
[1680658173941,0.003494,28619.0,28613.0,0.034442]
[1680658174164,0.001,28614.0,28613.0,0.022]
[1680658174396,0.001,28614.0,28613.0,0.055609]
[1680658175275,0.003494,28620.0,28613.0,0.033609]
[1680658175493,0.001,28614.0,28613.0,0.017]
[1680658175718,0.001,28614.0,28613.0,0.051767]
[1680658176168,0.00021,28618.0,28613.0,0.034767]
[1680658176391,0.00021,28618.0,28613.0,0.051767]
[1680658176612,0.00021,28618.0,28613.0,0.017]
[1680658176799,0.00021,28618.0,28612.0,0.1]
[1680658177149,0.00021,28618.0,28613.0,0.050184]
[1680658177150,0.001,28614.0,28613.0,0.050184]
[1680658177253,0.14210681,28618.0,28613.0,0.033184]
[1680658177475,0.35820456,28617.0,28612.0,0.031036]
[1680658177689,0.35820456,28617.0,28612.0,0.00012]
[1680658177690,0.50003631,28617.0,28612.0,0.00012]
[1680658177920,0.50003631,28617.0,28611.0,0.00018]
[1680658178141,0.50003631,28617.0,28613.0,0.017]
[1680658178359,0.3581395,28617.0,28611.0,0.00018]
[1680658178579,0.50103631,28617.0,28612.0,0.022]
[1680658178799,0.3581395,28617.0,28612.0,0.08224769]
[1680658179013,0.3591395,28617.0,28613.0,0.017]
[1680658179458,0.3581395,28617.0,28612.0,0.08242769]
[1680658179654,0.3581395,28617.0,28612.0,0.10442769]
[1680658179655,0.3591395,28617.0,28612.0,0.10442769]
[1680658179901,0.46154325,28617.0,28612.0,0.08242769]
[1680658180132,0.60444006,28617.0,28613.0,0.017]
[1680658180377,0.325103,28616.0,28613.0,0.017]
[1680658180621,0.024322,28614.0,28613.0,0.017]
[1680658180854,0.027816,28614.0,28613.0,0.017]
[1680658181080,0.022816,28614.0,28610.0,0.10378565]
[1680658181309,0.022816,28614.0,28612.0,0.02]
[1680658181310,0.003494,28614.0,28612.0,0.02]
[1680658181545,0.37586656,28613.0,28610.0,0.10378565]
[1680658181777,0.023678,28611.0,28610.0,0.10378565]
[1680658182015,0.35820556,28611.0,28610.0,0.10378565]
[1680658182263,0.65841556,28611.0,28610.0,0.10478565]
[1680658182486,0.68111456,28611.0,28610.0,0.10378565]
[1680658182716,0.68111456,28611.0,28610.0,0.10478565]
[1680658182717,0.67092056,28611.0,28610.0,0.10478565]
[1680658183659,0.31621,28611.0,28610.0,0.10478565]
[1680658183887,0.01621,28611.0,28610.0,0.10478565]
[1680658184201,0.016,28611.0,28610.0,0.10478565]
[1680658184863,0.016,28611.0,28610.0,0.18703334]
[1680658186018,0.016,28611.0,28610.0,0.31047507]
[1680658186247,0.016,28611.0,28610.0,0.18703334]
[1680658186681,0.016,28611.0,28610.0,0.22822738]
[1680658186896,0.016,28611.0,28610.0,0.34466782]
[1680658187518,0.016,28611.0,28610.0,0.22122609]
[1680658188397,0.016,28611.0,28610.0,0.31071882]
[1680658188642,0.026485,28611.0,28610.0,0.10478565]
[1680658189087,0.019495,28611.0,28610.0,0.10478565]
[1680658189550,0.016,28611.0,28610.0,0.10478565]
[1680658190685,0.075416,28611.0,28610.0,0.10478565]
[1680658190906,0.46774096,28611.0,28610.0,0.10478565]
[1680658191345,0.76774096,28611.0,28610.0,0.10478565]
[1680658191567,0.73278996,28611.0,28610.0,0.10478565]
[1680658191791,0.70427856,28611.0,28610.0,0.10478565]
[1680658192688,0.68128856,28611.0,28610.0,0.10378565]
[1680658192898,0.70828856,28611.0,28610.0,0.10478565]
[1680658193106,0.68128856,28611.0,28610.0,0.10378565]
[1680658193321,0.70828856,28611.0,28610.0,0.10478565]
[1680658193747,0.68128856,28611.0,28610.0,0.10378565]
[1680658193967,0.70828856,28611.0,28610.0,0.10478565]
[1680658194183,0.68128856,28611.0,28610.0,0.10378565]
[1680658194400,0.70828856,28611.0,28610.0,0.10478565]
[1680658194612,0.68128856,28611.0,28610.0,0.10378565]
[1680658195925,0.68128856,28611.0,28610.0,0.10478565]
[1680658196137,0.70828856,28611.0,28610.0,0.10478565]
[1680658196391,0.68128856,28611.0,28610.0,0.10378565]
[1680658196618,0.70828856,28611.0,28610.0,0.10478565]
[1680658196838,0.70479356,28611.0,28610.0,0.10478565]
[1680658197039,0.327,28611.0,28610.0,0.10478565]
[1680658197255,0.027,28611.0,28610.0,0.10478565]
[1680658197475,0.327,28611.0,28610.0,0.10478565]
[1680658197759,0.027,28611.0,28610.0,0.12226165]
[1680658197981,0.027,28611.0,28610.0,0.14124865]
[1680658198420,0.00895333,28614.0,28610.0,0.14024865]
[1680658198639,0.008,28611.0,28610.0,0.10478565]
[1680658198856,0.00895333,28614.0,28610.0,0.13858565]
[1680658199093,0.00895333,28614.0,28610.0,0.11178565]
[1680658199094,0.002,28611.0,28610.0,0.11178565]
[1680658199324,0.00895333,28614.0,28610.0,0.13856465]
[1680658199516,0.15885014,28614.0,28610.0,0.10478565]
[1680658199742,0.15885014,28614.0,28610.0,0.10378565]
[1680658199743,0.00895333,28614.0,28610.0,0.10378565]
[1680658199952,0.01095333,28614.0,28610.0,0.11178565]
[1680658200315,0.00895333,28614.0,28610.0,0.10378565]
[1680658201126,0.00895333,28614.0,28610.0,0.10978565]
[1680658201329,0.00995333,28614.0,28610.0,0.10978565]
[1680658201924,0.00895333,28614.0,28610.0,0.10378565]
[1680658202135,0.01695333,28614.0,28610.0,0.10478565]
[1680658202546,0.02044733,28614.0,28610.0,0.10478565]
[1680658202789,0.01695333,28614.0,28610.0,0.10478565]
[1680658203211,0.35471056,28613.0,28610.0,0.10478565]
[1680658203443,0.022646,28611.0,28610.0,0.10478565]
[1680658203674,0.38085156,28611.0,28610.0,0.10478565]
[1680658203889,0.38085156,28611.0,28610.0,0.10378565]
[1680658204103,0.68085156,28611.0,28610.0,0.10378565]
[1680658205237,0.70785156,28611.0,28610.0,0.10378565]
[1680658205474,0.68085156,28611.0,28610.0,0.10378565]
[1680658205690,0.70785156,28611.0,28610.0,0.10378565]
[1680658205908,0.68085156,28611.0,28610.0,0.10369078]
[1680658206955,0.70785156,28611.0,28610.0,0.10369078]
[1680658207181,0.68085156,28611.0,28610.0,0.10369078]
[1680658207869,0.70785156,28611.0,28610.0,0.10369078]
[1680658209121,0.70785156,28611.0,28610.0,0.27369078]
[1680658209322,0.70806156,28611.0,28610.0,0.27369078]
[1680658210379,0.81633672,28611.0,28610.0,0.27369078]
[1680658211031,0.70806156,28611.0,28610.0,0.27369078]
[1680658212324,1.08974156,28611.0,28610.0,0.27369078]
[1680658212532,1.13319256,28611.0,28610.0,0.27369078]
[1680658212738,1.27508937,28611.0,28610.0,0.08207378]
[1680658212989,2.1477163,28611.0,28610.0,0.08207378]
[1680658213215,2.3156863,28611.0,28610.0,0.08207378]
[1680658213651,2.2886863,28611.0,28610.0,0.08207378]
[1680658213865,2.3156863,28611.0,28610.0,0.08207378]
[1680658214075,2.30394867,28611.0,28610.0,0.08207378]
[1680658214490,2.33094867,28611.0,28610.0,0.08207378]
[1680658214697,2.30394867,28611.0,28610.0,0.08207378]
[1680658215145,2.14097867,28611.0,28610.0,0.0353854]
[1680658215351,2.1257163,28611.0,28610.0,0.0353854]
[1680658215579,2.1527163,28611.0,28610.0,0.0353854]
[1680658216461,2.1797163,28611.0,28610.0,0.0353854]
[1680658216676,2.1257163,28611.0,28610.0,0.0353854]
[1680658216890,2.1257163,28611.0,28610.0,0.0268664]
[1680658216891,2.01600493,28611.0,28610.0,0.0268664]
[1680658217100,1.98900493,28611.0,28610.0,0.0268664]
[1680658217748,2.01600493,28611.0,28610.0,0.0268664]
[1680658218163,1.98105393,28611.0,28610.0,0.0268664]
[1680658218383,1.96579156,28611.0,28610.0,0.0268664]
[1680658218823,1.93879156,28611.0,28610.0,0.0268664]
[1680658219025,1.93879156,28611.0,28610.0,0.0182364]
[1680658219026,1.96579156,28611.0,28610.0,0.0182364]
[1680658219262,1.93879156,28611.0,28610.0,0.0182364]
[1680658219467,1.96579156,28611.0,28610.0,0.0182364]
[1680658220143,1.96579156,28611.0,28610.0,0.00928245]
[1680658220366,1.96753856,28611.0,28610.0,0.00928245]
[1680658220611,2.30221519,28611.0,28610.0,2.45e-06]
[1680658221053,2.28695282,28611.0,28610.0,2.45e-06]
[1680658221700,2.25995282,28611.0,28610.0,2.45e-06]
[1680658222123,2.28695282,28611.0,28610.0,2.45e-06]
[1680658222356,2.25995282,28611.0,28610.0,2.45e-06]
[1680658222579,2.28695282,28611.0,28610.0,2.45e-06]
[1680658222795,2.25995282,28611.0,28610.0,2.45e-06]
[1680658223035,1.96759856,28611.0,28610.0,2.45e-06]
[1680658223300,1.96759856,28611.0,28607.0,0.0212]
[1680658223301,1.9405089,28611.0,28607.0,0.0212]
[1680658223535,0.72241056,28608.0,28607.0,0.0212]